bitfinex/quotes_BTCUSD_20240718
["timestamp","ask_amount","ask_price","bid_price","bid_amount"]
[1721272322845,1.37133399,64854.0,64853.0,0.062973]
[1721272323062,1.35733399,64854.0,64853.0,0.062973]
[1721272323298,1.47271918,64854.0,64853.0,0.062973]
[1721272323508,1.47271918,64854.0,64853.0,0.061973]
[1721272323509,1.3947954,64854.0,64853.0,0.061973]
[1721272323728,1.4087954,64854.0,64853.0,0.062973]
[1721272323942,1.3947954,64854.0,64853.0,0.061973]
[1721272324179,1.3947944,64854.0,64853.0,0.061973]
[1721272324402,1.4177944,64854.0,64853.0,0.061973]
[1721272324620,1.41779448,64854.0,64853.0,0.061973]
[1721272324848,1.53319993,64854.0,64853.0,0.061973]
[1721272325055,1.54719993,64854.0,64853.0,0.061973]
[1721272325521,1.41779448,64854.0,64853.0,0.061973]
[1721272325738,1.43179448,64854.0,64853.0,0.062973]
[1721272325955,1.44579448,64854.0,64853.0,0.062973]
[1721272327278,1.43618715,64854.0,64853.0,0.062973]
[1721272327501,1.49579415,64854.0,64853.0,0.001873]
[1721272328811,1.48618715,64854.0,64853.0,0.001873]
[1721272329027,1.4957943,64854.0,64853.0,0.001873]
[1721272329481,1.4457943,64854.0,64853.0,0.001873]
[1721272329723,1.4457943,64854.0,64853.0,0.143473]
[1721272329931,1.39433289,64854.0,64853.0,0.143473]
[1721272330161,0.89306038,64854.0,64853.0,0.143473]
[1721272330377,0.66795774,64854.0,64853.0,0.143473]
[1721272330657,0.97634174,64854.0,64853.0,0.143473]
[1721272330871,0.66795774,64854.0,64853.0,0.143473]
[1721272331110,0.76035105,64854.0,64853.0,0.143473]
[1721272331786,0.74635105,64854.0,64853.0,0.143473]
[1721272332002,0.73235105,64854.0,64853.0,0.142473]
[1721272332212,0.73635105,64854.0,64853.0,0.142473]
[1721272332423,0.1413787,64854.0,64853.0,0.142473]
[1721272332645,0.2955707,64854.0,64853.0,0.142473]
[1721272333301,0.51156139,64854.0,64853.0,0.142473]
[1721272333748,0.96632713,64854.0,64853.0,0.142473]
[1721272334009,0.99232713,64854.0,64853.0,0.142473]
[1721272334228,0.62209526,64854.0,64853.0,0.142473]
[1721272334496,0.50656139,64854.0,64853.0,0.142473]
[1721272334939,0.59899221,64854.0,64853.0,0.142473]
[1721272335154,0.60282221,64854.0,64853.0,0.142473]
[1721272335611,0.97315713,64854.0,64853.0,0.142473]
[1721272335833,0.99615713,64854.0,64853.0,0.142473]
[1721272336035,1.00576394,64854.0,64853.0,0.142473]
[1721272337141,1.00576392,64854.0,64853.0,0.142473]
[1721272338265,1.31414792,64854.0,64853.0,0.000873]
[1721272338938,1.36414792,64854.0,64853.0,0.000873]
[1721272339155,1.31414792,64854.0,64853.0,0.000873]
[1721272339413,1.31414792,64854.0,64853.0,0.065973]
[1721272339414,1.27316253,64854.0,64853.0,0.065973]
[1721272339633,0.95517174,64854.0,64853.0,0.065973]
[1721272340062,0.96477842,64854.0,64853.0,0.142973]
[1721272340286,0.95517174,64854.0,64853.0,0.142973]
[1721272340505,1.11912805,64854.0,64853.0,0.142973]
[1721272342101,1.11912805,64854.0,64853.0,0.000873]
[1721272342348,1.93490205,64854.0,64853.0,0.000873]
[1721272342583,2.03490205,64854.0,64853.0,0.000873]
[1721272342812,2.17359604,64854.0,64853.0,0.000873]
[1721272343025,2.17059604,64854.0,64853.0,0.000873]
[1721272343240,2.16759604,64854.0,64853.0,0.000873]
[1721272343448,2.0289027,64854.0,64853.0,0.000873]
[1721272343680,2.0289027,64854.0,64853.0,0.001873]
[1721272343681,2.0399027,64854.0,64853.0,0.001873]
[1721272343899,2.0289027,64854.0,64853.0,0.000873]
[1721272344127,2.0399027,64854.0,64853.0,0.001873]
[1721272344591,2.0509027,64854.0,64853.0,0.001873]
[1721272345051,2.0399027,64854.0,64853.0,0.001873]
[1721272345275,2.0509027,64854.0,64853.0,0.001873]
[1721272345979,1.8557027,64854.0,64853.0,0.001873]
[1721272346643,1.85570285,64854.0,64853.0,0.001873]
[1721272348627,1.90570285,64854.0,64853.0,0.001873]
[1721272350005,1.90570295,64854.0,64853.0,0.001873]
[1721272352930,2.21408695,64854.0,64853.0,0.001873]
[1721272353150,2.51782842,64854.0,64853.0,0.001873]
[1721272353391,2.39187145,64854.0,64853.0,0.001873]
[1721272353644,2.36178861,64854.0,64853.0,0.001873]
[1721272353865,2.70026473,64854.0,64853.0,0.001873]
[1721272354092,2.68926473,64854.0,64853.0,0.001873]
[1721272354338,2.68917232,64854.0,64853.0,0.001873]
[1721272354559,2.70317232,64854.0,64853.0,0.001873]
[1721272355010,2.67817232,64854.0,64853.0,0.000873]
[1721272355245,2.70617232,64854.0,64853.0,0.000873]
[1721272355482,2.69217232,64854.0,64853.0,0.000873]
[1721272355913,2.67817232,64854.0,64853.0,0.000873]
[1721272356421,2.69217637,64854.0,64853.0,0.000873]
[1721272356882,2.67817637,64854.0,64853.0,0.000873]
[1721272357317,2.173256,64843.0,64842.0,0.000913]
[1721272357538,2.67974732,64843.0,64842.0,0.000913]
[1721272358863,2.69374732,64843.0,64842.0,0.000913]
[1721272359083,2.70774732,64843.0,64842.0,0.000913]
[1721272359522,2.67013774,64843.0,64842.0,0.000913]
[1721272359762,2.84809747,64843.0,64842.0,0.000913]
[1721272359991,2.86209747,64843.0,64842.0,0.000913]
[1721272361734,2.79629747,64843.0,64842.0,0.000913]
[1721272362663,2.71949747,64843.0,64842.0,0.000913]
[1721272362887,2.51514773,64843.0,64842.0,0.061913]
[1721272363311,1.3715202,64843.0,64842.0,0.061913]
[1721272363801,1.36191074,64843.0,64842.0,0.061913]
[1721272364015,1.47732347,64843.0,64842.0,0.061913]
[1721272364243,1.05347374,64843.0,64842.0,0.061913]
[1721272364666,1.05347374,64843.0,64842.0,0.144513]
[1721272364667,1.14580094,64843.0,64842.0,0.144513]
[1721272364897,1.05347374,64843.0,64842.0,0.144513]
[1721272365147,0.81427884,64843.0,64842.0,0.144513]
[1721272365366,0.028,64843.0,64842.0,0.144513]
[1721272365588,0.0461608,64843.0,64842.0,0.144513]
[1721272365814,0.006,64843.0,64842.0,0.000913]
[1721272366030,0.012,64843.0,64842.0,0.299234]
[1721272370073,0.012,64843.0,64842.0,0.607676]
[1721272370735,0.006,64843.0,64842.0,0.607676]
[1721272370977,0.009,64843.0,64842.0,0.607676]
[1721272371437,0.006,64843.0,64842.0,0.607676]
[1721272371823,0.04615698,64849.0,64844.0,0.300814]
[1721272372044,0.04615698,64849.0,64842.0,0.310355]
[1721272372045,0.26960145,64850.0,64845.0,0.1466]
[1721272372254,0.26960145,64850.0,64847.0,0.1442]
[1721272372479,0.26960145,64850.0,64848.0,0.062]
[1721272374423,0.11539845,64850.0,64849.0,0.0798]
[1721272374638,0.11639845,64850.0,64849.0,0.1419]
[1721272375349,0.11539845,64850.0,64849.0,0.1419]
[1721272375575,0.11539845,64850.0,64849.0,1.221328]
[1721272375826,0.11539845,64850.0,64849.0,1.37770974]
[1721272376038,0.00083,64854.0,64853.0,0.770972]
[1721272376255,0.00083,64854.0,64853.0,0.912572]
[1721272376741,0.00083,64854.0,64853.0,1.220961]
[1721272376974,0.00083,64854.0,64853.0,0.912572]
[1721272377178,0.00183,64854.0,64853.0,0.914572]
[1721272378314,0.00283,64854.0,64853.0,0.916572]
[1721272380334,0.00283,64854.0,64853.0,1.37934274]
[1721272380786,0.00283,64854.0,64853.0,0.916572]
[1721272381246,0.00283,64854.0,64853.0,0.608183]
[1721272384593,0.00283,64854.0,64853.0,0.916572]
[1721272388832,0.00283,64854.0,64853.0,1.224961]
[1721272392460,0.00283,64854.0,64853.0,0.299794]
[1721272392888,0.00283,64854.0,64853.0,0.608183]
[1721272393978,0.00283,64854.0,64853.0,0.299794]
[1721272394210,0.465406,64854.0,64853.0,0.004]
[1721272394428,0.8282206,64854.0,64853.0,0.004]
[1721272394717,0.5198366,64854.0,64853.0,0.004]
[1721272394941,0.464406,64854.0,64853.0,0.002]
[1721272395157,0.154198,64852.0,64847.0,0.0811]
[1721272395373,0.154198,64852.0,64847.0,0.235309]
[1721272396687,0.001,64852.0,64847.0,0.238309]
[1721272396896,0.001,64852.0,64848.0,0.0005248]
[1721272397140,0.155197,64852.0,64848.0,0.0005248]
[1721272397562,0.155197,64852.0,64847.0,0.238309]
[1721272398211,0.154197,64852.0,64848.0,0.002]
[1721272398443,0.155197,64852.0,64848.0,0.005]
[1721272398687,0.155197,64852.0,64847.0,0.235309]
[1721272398900,0.155197,64852.0,64847.0,0.237309]
[1721272399128,0.156197,64852.0,64847.0,0.240309]
[1721272399336,0.154197,64852.0,64848.0,0.000913]
[1721272399552,0.155197,64852.0,64848.0,0.003913]
[1721272400451,0.156197,64852.0,64848.0,0.003913]
[1721272400659,0.156197,64852.0,64848.0,0.005913]
[1721272400876,0.156197,64852.0,64848.0,0.08308779]
[1721272401129,0.156197,64852.0,64848.0,0.08108779]
[1721272401358,0.156197,64852.0,64848.0,0.08308779]
[1721272402021,0.154197,64852.0,64848.0,0.08008779]
[1721272402255,0.154197,64852.0,64848.0,0.08308779]
[1721272410795,0.154197,64852.0,64848.0,0.08291972]
[1721272411231,0.154197,64852.0,64849.0,0.0005248]
[1721272411456,0.154197,64852.0,64848.0,0.08291972]
[1721272412052,0.154197,64852.0,64848.0,0.07991972]
[1721272412283,0.154197,64852.0,64849.0,0.003]
[1721272412686,0.154197,64852.0,64848.0,0.07991972]
[1721272413128,0.154197,64852.0,64848.0,0.08091972]
[1721272413475,0.154197,64852.0,64848.0,0.07791972]
[1721272413692,0.154197,64852.0,64849.0,0.003]
[1721272414140,0.154197,64852.0,64849.0,0.005]
[1721272415675,0.154197,64852.0,64849.0,0.002]
[1721272416725,0.154197,64852.0,64849.0,0.005]
[1721272418995,0.20039313,64853.0,64849.0,0.005]
[1721272419834,0.20039313,64853.0,64849.0,0.002]
[1721272420076,0.154196,64853.0,64848.0,0.23212472]
[1721272420294,0.20040702,64853.0,64849.0,0.003]
[1721272420525,0.20040702,64853.0,64849.0,0.005]
[1721272420747,0.20041062,64853.0,64849.0,0.159204]
[1721272420965,0.20041062,64853.0,64850.0,0.0005248]
[1721272421190,0.20041062,64853.0,64849.0,0.157204]
[1721272421440,0.154196,64853.0,64849.0,0.157204]
[1721272421916,0.154196,64853.0,64849.0,0.154204]
[1721272422141,0.20041062,64853.0,64849.0,0.154204]
[1721272422370,0.154196,64853.0,64849.0,0.154204]
[1721272422854,0.154196,64853.0,64849.0,0.157204]
[1721272423336,0.04704462,64854.0,64849.0,0.157204]
[1721272423562,0.04704462,64854.0,64853.0,0.770972]
[1721272423563,0.00083,64854.0,64853.0,0.770972]
[1721272423807,0.00083,64854.0,64853.0,1.20743007]
[1721272424680,0.00183,64854.0,64853.0,1.20743007]
[1721272425324,0.00283,64854.0,64853.0,1.085361]
[1721272425544,0.00283,64854.0,64853.0,0.154194]
[1721272425754,0.00383,64854.0,64853.0,0.160194]
[1721272426164,0.00283,64854.0,64853.0,0.160194]
[1721272426370,0.00283,64854.0,64853.0,0.468583]
[1721272426606,0.00383,64854.0,64853.0,0.164194]
[1721272430857,0.00383,64854.0,64853.0,0.472583]
[1721272431072,0.00383,64854.0,64853.0,0.868772]
[1721272431287,0.00383,64854.0,64853.0,0.99682883]
[1721272432396,0.00383,64854.0,64853.0,0.868772]
[1721272433071,0.00383,64854.0,64853.0,0.780972]
[1721272433546,0.00383,64854.0,64853.0,1.35631856]
[1721272434232,0.00383,64854.0,64853.0,1.228261]
[1721272443609,0.00383,64854.0,64853.0,0.472583]
[1721272444724,0.218522,64854.0,64853.0,0.01]
[1721272444949,0.34374933,64854.0,64853.0,0.01]
[1721272445177,0.74230453,64854.0,64853.0,0.01]
[1721272445389,0.65213333,64854.0,64853.0,0.01]
[1721272445612,0.448714,64854.0,64848.0,0.00074493]
[1721272445848,0.154197,64852.0,64848.0,0.00074493]
[1721272446891,0.154197,64852.0,64848.0,0.00374493]
[1721272447313,0.154197,64852.0,64848.0,0.00074493]
[1721272447747,0.296524,64854.0,64848.0,0.00074493]
[1721272447970,0.0022692,64853.0,64849.0,0.0005248]
[1721272448205,0.0022692,64853.0,64848.0,0.00074493]
[1721272448591,0.00083,64854.0,64850.0,0.1542]
[1721272448795,0.002,64852.0,64851.0,0.214398]
[1721272449021,0.001,64852.0,64851.0,0.831196]
[1721272449242,0.00083,64854.0,64853.0,0.462583]
[1721272449621,0.00083,64854.0,64853.0,0.154194]
[1721272451090,0.00083,64854.0,64853.0,0.462583]
[1721272451233,0.00083,64854.0,64853.0,0.770972]
[1721272451452,0.00083,64854.0,64853.0,0.913872]
[1721272451653,0.00183,64854.0,64853.0,0.918872]
[1721272452184,0.00183,64854.0,64853.0,0.922872]
[1721272452818,0.00183,64854.0,64853.0,0.163194]
[1721272453192,0.00183,64854.0,64853.0,0.471583]
[1721272456751,0.06362144,64856.0,64854.0,0.154191]
[1721272458272,0.06362144,64856.0,64854.0,0.159191]
[1721272458887,0.06362144,64856.0,64854.0,0.154191]
[1721272459316,0.06362144,64856.0,64854.0,0.158191]
[1721272459729,0.06362144,64856.0,64854.0,0.154191]
[1721272459940,0.06462144,64856.0,64854.0,0.159191]
[1721272461222,0.06462144,64856.0,64854.0,0.158191]
[1721272461423,0.001,64856.0,64855.0,0.60567]
[1721272461638,0.002,64856.0,64855.0,0.60567]
[1721272461927,0.002,64856.0,64855.0,0.91405]
[1721272462355,0.0751,64862.0,64858.0,0.154181]
[1721272462556,0.0022692,64861.0,64858.0,0.154181]
[1721272464737,0.0022692,64861.0,64858.0,0.160181]
[1721272465158,0.0751,64862.0,64858.0,0.158181]
[1721272465352,0.0751,64862.0,64858.0,0.161181]
[1721272465554,0.0022692,64861.0,64858.0,0.161181]
[1721272466104,0.0022692,64861.0,64858.0,0.158181]
[1721272466422,0.229275,64862.0,64858.0,0.004]
[1721272467609,0.229275,64862.0,64857.0,0.154184]
[1721272467832,0.229275,64862.0,64858.0,0.003]
[1721272468037,0.0693806,64860.0,64858.0,0.003]
[1721272468856,0.0693806,64860.0,64858.0,0.005]
[1721272469249,0.0693806,64860.0,64857.0,0.154184]
[1721272469459,0.0703806,64860.0,64858.0,0.009]
[1721272470099,0.0703806,64860.0,64858.0,0.005]
[1721272470469,0.001,64860.0,64858.0,0.005]
[1721272471266,0.154175,64861.0,64857.0,0.158184]
[1721272472320,0.001,64860.0,64857.0,0.159184]
[1721272472537,0.154175,64861.0,64855.0,0.30838]
[1721272472786,0.154175,64861.0,64858.0,0.004]
[1721272473239,0.0693941,64859.0,64857.0,0.233284]
[1721272473445,0.0693941,64859.0,64857.0,0.237284]
[1721272474306,0.06939579,64859.0,64858.0,0.003]
[1721272474725,0.07039579,64859.0,64858.0,0.003]
[1721272475395,0.06939579,64859.0,64858.0,0.003]
[1721272475611,0.06939579,64859.0,64857.0,0.233284]
[1721272475814,0.07139579,64859.0,64858.0,0.006]
[1721272476410,0.07039579,64859.0,64858.0,0.006]
[1721272476625,0.07139579,64859.0,64858.0,0.01]
[1721272477260,0.07039579,64859.0,64858.0,0.004]
[1721272477660,0.07139579,64859.0,64858.0,0.004]
[1721272477863,0.07040056,64859.0,64858.0,0.004]
[1721272478327,0.07140056,64859.0,64858.0,0.01]
[1721272478541,0.07140056,64859.0,64858.0,0.164182]
[1721272479273,0.07140056,64859.0,64858.0,0.537347]
[1721272479274,0.002,64859.0,64858.0,0.537347]
[1721272479710,0.04826626,64859.0,64858.0,0.228982]
[1721272480134,0.002,64859.0,64858.0,0.228982]
[1721272480350,0.002,64859.0,64858.0,0.164182]
[1721272480562,0.1408,64859.0,64858.0,0.164182]
[1721272481706,0.21020079,64859.0,64858.0,0.164182]
[1721272481940,0.36438079,64859.0,64858.0,0.01]
[1721272482636,0.29498,64859.0,64858.0,0.01]
[1721272482864,0.36438079,64859.0,64858.0,0.01]
[1721272484816,0.36438366,64859.0,64858.0,0.01]
[1721272485443,0.29498,64859.0,64858.0,0.01]
[1721272486248,0.36438489,64859.0,64858.0,0.01]
[1721272486469,0.29498,64859.0,64858.0,0.01]
[1721272486830,0.36438624,64859.0,64858.0,0.01]
[1721272488257,0.3643866,64859.0,64858.0,0.01]
[1721272488473,0.29498,64859.0,64858.0,0.01]
[1721272488906,1.15388374,64859.0,64858.0,0.01]
[1721272489129,1.64485009,64859.0,64858.0,0.01]
[1721272489371,2.04590109,64859.0,64858.0,0.01]
[1721272489616,2.03629574,64859.0,64858.0,0.01]
[1721272489830,2.09220568,64859.0,64858.0,0.01]
[1721272490039,0.14269,64849.0,64848.0,0.00074493]
[1721272490267,1.00099115,64849.0,64848.0,0.00074493]
[1721272490479,2.02621515,64849.0,64848.0,0.00074493]
[1721272490690,2.04921515,64849.0,64848.0,0.00074493]
[1721272490917,2.20356472,64849.0,64848.0,0.00074493]
[1721272491335,2.20379894,64849.0,64848.0,0.00074493]
[1721272491541,1.99944937,64849.0,64848.0,0.00074493]
[1721272491745,2.0495277,64849.0,64848.0,0.00074493]
[1721272491996,2.0495277,64849.0,64848.0,0.00274493]
[1721272492212,2.0625277,64849.0,64848.0,0.00274493]
[1721272492418,2.0625277,64849.0,64848.0,0.00074493]
[1721272492625,2.23087727,64849.0,64848.0,0.00074493]
[1721272494188,2.36928163,64849.0,64848.0,0.00074493]
[1721272494431,2.17095731,64849.0,64848.0,0.00074493]
[1721272494647,2.18137571,64849.0,64848.0,0.00074493]
[1721272495851,2.23137571,64849.0,64848.0,0.00074493]
[1721272496910,2.18137571,64849.0,64848.0,0.00074493]
[1721272497870,2.1816981,64849.0,64848.0,0.00074493]
[1721272498085,2.2316981,64849.0,64848.0,0.00074493]
[1721272500746,2.22095731,64849.0,64848.0,0.00074493]
[1721272500958,2.23117299,64849.0,64848.0,0.00074493]
[1721272501391,2.23117351,64849.0,64848.0,0.00074493]
[1721272501873,2.53958151,64849.0,64848.0,0.00074493]
[1721272502574,2.67775685,64849.0,64848.0,0.00074493]
[1721272502810,2.53958151,64849.0,64848.0,0.00074493]
[1721272503298,2.52936531,64849.0,64848.0,0.00074493]
[1721272503519,2.53948983,64849.0,64848.0,0.00074493]
[1721272506393,2.52936531,64849.0,64848.0,0.00074493]
[1721272506611,2.65401759,64849.0,64848.0,0.00074493]
[1721272507294,2.53897527,64849.0,64848.0,0.00074493]
[1721272507857,2.53006794,64849.0,64848.0,0.00074493]
[1721272508079,2.64522849,64849.0,64848.0,0.00074493]
[1721272508300,2.0762177,64849.0,64848.0,0.00074493]
[1721272508953,2.56660774,64849.0,64848.0,0.00074493]
[1721272509600,2.57628762,64849.0,64848.0,0.00074493]
[1721272509815,2.73063719,64849.0,64848.0,0.00074493]
[1721272510029,1.72312912,64849.0,64848.0,0.00074493]
[1721272510242,1.36080974,64849.0,64848.0,0.00074493]
[1721272510469,1.44860974,64849.0,64848.0,0.00074493]
[1721272512245,1.14020174,64849.0,64848.0,0.00074493]
[1721272512475,1.16320174,64849.0,64848.0,0.00074493]
[1721272515079,1.66500974,64849.0,64848.0,0.00074493]
[1721272515291,1.82896768,64849.0,64848.0,0.00074493]
[1721272515978,1.77896774,64849.0,64848.0,0.00074493]
[1721272516202,1.71476774,64849.0,64848.0,0.00074493]
[1721272517775,1.76476799,64849.0,64848.0,0.00074493]
[1721272519291,1.71476803,64849.0,64848.0,0.00074493]
[1721272519531,1.48121846,64849.0,64848.0,0.00074493]
[1721272519743,1.48121805,64849.0,64848.0,0.00074493]
[1721272519953,1.53121805,64849.0,64848.0,0.00074493]
[1721272520376,1.48121805,64849.0,64848.0,0.00074493]
[1721272521466,1.53121805,64849.0,64848.0,0.00074493]
[1721272521681,1.68556762,64849.0,64848.0,0.00074493]
[1721272522602,2.16906562,64849.0,64848.0,0.00074493]
[1721272522808,2.23176562,64849.0,64848.0,0.00074493]
[1721272523243,2.3008319,64849.0,64848.0,0.00074493]
[1721272524287,2.23176562,64849.0,64848.0,0.00074493]
[1721272525177,2.323854,64849.0,64848.0,0.00074493]
[1721272525604,2.23176562,64849.0,64848.0,0.00074493]
[1721272525835,2.27771035,64849.0,64848.0,0.00074493]
[1721272527376,1.860119,64843.0,64842.0,0.000913]
[1721272527616,2.58938312,64843.0,64842.0,0.000913]
[1721272528261,2.72128312,64843.0,64842.0,0.000913]
[1721272529001,2.72134282,64843.0,64842.0,0.000913]
[1721272529222,2.66563774,64843.0,64842.0,0.000913]
[1721272529436,2.87110941,64843.0,64842.0,0.000913]
[1721272529637,2.87810941,64843.0,64842.0,0.000913]
[1721272529849,2.66440941,64843.0,64842.0,0.000913]
[1721272530095,2.88410941,64843.0,64842.0,0.000913]
[1721272530725,2.66440941,64843.0,64842.0,0.000913]
[1721272530946,2.88410941,64843.0,64842.0,0.000913]
[1721272532525,3.19254641,64843.0,64842.0,1e-06]
[1721272532757,0.204261,64825.0,64822.0,0.0005248]
[1721272532973,1.53226277,64825.0,64822.0,0.0005248]
[1721272533189,1.81803105,64825.0,64814.0,0.0005248]
[1721272534063,1.76903105,64825.0,64814.0,0.0005248]
[1721272534271,1.81903105,64825.0,64814.0,0.0005248]
[1721272534483,1.81803105,64825.0,64814.0,0.0005248]
[1721272534692,1.82803105,64825.0,64814.0,0.0005248]
[1721272535186,1.96567217,64825.0,64814.0,0.0005248]
[1721272535426,1.92811575,64825.0,64814.0,0.0005248]
[1721272535638,2.06674004,64825.0,64814.0,0.0005248]
[1721272535859,2.06674004,64825.0,64811.0,0.0827]
[1721272535860,2.37803775,64825.0,64808.0,0.0005248]
[1721272536106,2.58049383,64825.0,64808.0,0.0005248]
[1721272536342,2.41554291,64825.0,64808.0,0.0005248]
[1721272536598,2.42954291,64825.0,64808.0,0.0005248]
[1721272536839,2.41554291,64825.0,64808.0,0.0005248]
[1721272537321,2.44354291,64825.0,64808.0,0.0005248]
[1721272537542,2.39703775,64825.0,64808.0,0.0005248]
[1721272537757,2.38303775,64825.0,64808.0,0.0005248]
[1721272537994,2.36903775,64825.0,64808.0,0.0005248]
[1721272538221,2.37331853,64825.0,64808.0,0.0005248]
[1721272538439,2.38293236,64825.0,64808.0,0.0005248]
[1721272538869,2.3829326,64825.0,64808.0,0.0005248]
[1721272539079,1.43865,64811.0,64808.0,0.0005248]
[1721272539320,2.17632174,64811.0,64797.0,0.0637]
[1721272539541,2.18593688,64811.0,64798.0,0.0005248]
[1721272539761,2.49452588,64811.0,64797.0,0.0637]
[1721272540015,2.46872589,64811.0,64797.0,0.0637]
[1721272540260,2.62307546,64811.0,64797.0,0.0637]
[1721272540473,2.62907546,64811.0,64797.0,0.0637]
[1721272540679,2.67907546,64811.0,64797.0,0.0637]
[1721272541122,2.68507546,64811.0,64797.0,0.0637]
[1721272541596,2.68724579,64811.0,64797.0,0.0637]
[1721272542315,2.84404014,64811.0,64797.0,0.0637]
[1721272542529,2.82100465,64811.0,64797.0,0.0637]
[1721272542728,2.8205142,64811.0,64797.0,0.0637]
[1721272542949,2.82051317,64811.0,64797.0,0.0637]
[1721272543347,2.75580911,64811.0,64797.0,0.0637]
[1721272543851,2.75580911,64811.0,64810.0,0.000913]
[1721272544270,2.68675534,64811.0,64810.0,0.000913]
[1721272544919,2.68673433,64811.0,64810.0,0.000913]
[1721272548029,2.67546032,64811.0,64810.0,0.000913]
[1721272548251,2.68658544,64811.0,64810.0,0.000913]
[1721272550540,2.53868544,64811.0,64810.0,0.000913]
[1721272551463,2.5389605,64811.0,64810.0,0.000913]
[1721272551691,2.2303715,64811.0,64810.0,0.000913]
[1721272551936,2.51462175,64811.0,64810.0,0.000913]
[1721272552667,1.37064275,64811.0,64810.0,0.000913]
[1721272552901,1.03785374,64811.0,64810.0,0.142213]
[1721272553129,1.34644274,64811.0,64810.0,0.142213]
[1721272554506,1.36944274,64811.0,64810.0,0.142213]
[1721272554724,1.06085374,64811.0,64810.0,0.142213]
[1721272555713,0.72926474,64811.0,64810.0,0.142213]
[1721272556640,0.012,64811.0,64810.0,0.142213]
[1721272556861,0.012,64811.0,64810.0,0.29651]
[1721272557728,0.006,64811.0,64810.0,0.29651]
[1721272557985,0.308512,64828.0,64817.0,0.0806]
[1721272558210,0.5,64836.0,64820.0,0.145]
[1721272558211,0.0022692,64824.0,64820.0,0.145]
[1721272558439,0.25068661,64834.0,64823.0,0.0644]
[1721272558658,0.25068661,64834.0,64826.0,0.0806]
[1721272558659,0.154253,64829.0,64826.0,0.0806]
[1721272558880,0.154253,64829.0,64828.0,0.0806]
[1721272559122,0.154253,64829.0,64828.0,0.145]
[1721272559367,0.308465,64838.0,64829.0,0.0644]
[1721272559591,0.308465,64838.0,64823.0,0.08025989]
[1721272559592,0.15438174,64838.0,64832.0,0.0806]
[1721272559805,0.154238,64835.0,64833.0,0.0644]
[1721272560033,0.15424,64834.0,64833.0,0.0644]
[1721272560473,0.79254639,64834.0,64833.0,0.0644]
[1721272560741,0.48406639,64834.0,64833.0,0.0644]
[1721272561204,0.46272,64834.0,64833.0,0.0644]
[1721272561424,0.8712,64834.0,64833.0,0.0644]
[1721272561909,1.02558174,64834.0,64833.0,0.0644]
[1721272562151,0.154259,64826.0,64821.0,0.154269]
[1721272562374,0.154259,64826.0,64822.0,0.0005248]
[1721272562601,0.154259,64826.0,64823.0,0.1419]
[1721272563493,0.155259,64826.0,64823.0,0.1419]
[1721272563733,0.154255,64828.0,64824.0,0.063]
[1721272563949,0.001,64826.0,64824.0,0.063]
[1721272564417,0.154255,64828.0,64824.0,0.063]
[1721272564624,0.001,64826.0,64824.0,0.063]
[1721272564879,0.002,64826.0,64824.0,0.063]
[1721272565310,0.002,64826.0,64825.0,0.1458248]
[1721272565525,0.002,64826.0,64825.0,0.1453]
[1721272565763,0.002,64826.0,64825.0,0.299561]
[1721272566247,0.154247,64832.0,64827.0,0.06]
[1721272567817,0.154247,64831.0,64827.0,0.06]
[1721272569804,0.156247,64831.0,64827.0,0.06]
[1721272570005,0.158247,64831.0,64827.0,0.06]
[1721272570870,0.15425,64830.0,64827.0,0.06]
[1721272571091,0.004,64831.0,64827.0,0.06]
[1721272571551,0.462762,64828.0,64827.0,0.06]
[1721272571795,0.154262,64825.0,64823.0,0.0617]
[1721272572474,0.462773,64827.0,64823.0,0.0617]
[1721272573150,0.154259,64826.0,64823.0,0.0617]
[1721272573604,0.154261,64825.0,64823.0,0.0617]
[1721272573819,0.154261,64825.0,64823.0,0.0627]
[1721272574005,0.308516,64827.0,64823.0,0.0627]
[1721272574006,0.462774,64827.0,64823.0,0.0627]
[1721272574241,0.462774,64827.0,64823.0,0.0617]
[1721272574242,0.154259,64826.0,64823.0,0.0617]
[1721272574478,0.154259,64826.0,64823.0,0.0627]
[1721272575164,0.154254,64828.0,64823.0,0.0627]
[1721272575380,0.154245,64832.0,64827.0,0.0631]
[1721272575595,0.154245,64832.0,64828.0,0.0817]
[1721272575833,0.154245,64832.0,64830.0,0.0817]
[1721272576091,0.154245,64832.0,64831.0,0.0631]
[1721272576361,0.154238,64835.0,64831.0,0.0631]
[1721272576570,0.3603,64848.0,64831.0,0.0631]
[1721272576571,0.308423,64846.0,64835.0,0.154237]
[1721272576787,0.308423,64846.0,64836.0,0.1448]
[1721272576788,0.15506,64838.0,64836.0,0.1448]
[1721272577006,0.154232,64837.0,64836.0,0.1448]
[1721272577402,0.00083,64838.0,64836.0,0.1448]
[1721272578129,0.155061,64838.0,64836.0,0.1448]
[1721272578359,0.154232,64837.0,64836.0,0.1448]
[1721272578591,0.00083,64838.0,64836.0,0.1448]
[1721272579939,0.001,64837.0,64836.0,0.1448]
[1721272580363,0.00283,64838.0,64836.0,0.1448]
[1721272580595,0.00483,64838.0,64836.0,0.1448]
[1721272581016,0.00283,64838.0,64836.0,0.1448]
[1721272581249,0.462697,64837.0,64836.0,0.1448]
[1721272581471,0.5092497,64837.0,64836.0,0.0631]
[1721272581682,0.5092497,64837.0,64828.0,0.0005248]
[1721272581683,0.154242,64834.0,64832.0,0.1447]
[1721272583174,0.00183,64838.0,64834.0,0.154238]
[1721272583395,0.00083,64838.0,64835.0,0.308474]
[1721272583619,0.00083,64838.0,64836.0,0.1415]
[1721272583863,0.00083,64838.0,64837.0,0.1415]
[1721272584086,0.00083,64838.0,64837.0,0.68445619]
[1721272584297,0.308371,64857.0,64850.0,0.154201]
[1721272584298,0.00083,64853.0,64850.0,0.154201]
[1721272584510,0.00083,64853.0,64848.0,0.308411]
[1721272584511,0.0022692,64852.0,64851.0,0.295699]
[1721272584724,0.00083,64853.0,64851.0,0.295699]
[1721272584936,0.00083,64853.0,64852.0,0.154197]